{"text_format":"1","workbook":"xlsx","n_sheets":1,"sheets":["прилож. № 7"],"not_rendered":{"charts":0,"images":0,"macros":0,"external_links":0,"defined_names":0,"comments":0,"pivot_tables":0},"unopened":[],"bounds":{"document_bytes":16777216,"sheet_cells":100000,"rows_first":2000,"rows_last":500,"rows_between":2000,"halvings":0,"cell_chars":16384,"cell_head_chars":4096},"cells_cut":0,"cells_raw":0,"read":"whole","date_system":"1900"}

{"sheet":"прилож. № 7","index":0,"n_rows":222,"n_cols":8,"rows_kept":222,"cut":false,"hidden":false,"merged":[[0,0,0,5],[1,0,1,5],[2,1,2,5],[3,0,3,5]]}
["                                                                                    Приложение № 2"]
["        к  решению Думы Ушаковского муниципального образования от   31.05.2018 г. №__                                                                                                                                     \"О внесении изменений в решение Думы Ушаковского муниципального образования № 66 от 08.12.2017 г. \"Об утверждении бюджета на 2018 г. и на плановый период 2019-2020 годов\"                                                                                                                                                                                                                                        "]
[]
["РАСПРЕДЕЛЕНИЕ БЮДЖЕТНЫХ АССИГНОВАНИЙ  ПО РАЗДЕЛАМ, ПОДРАЗДЕЛАМ, ЦЕЛЕВЫМ СТАТЬЯМ (МУНИЦИПАЛЬНЫМ ПРОГРАММАМ И НЕПРОГРАММНЫМ НАПРАВЛЕНИЯМ ДЕЯТЕЛЬНОСТИ) И ВИДАМ РАСХОДОВ КЛАССИФИКАЦИИ РАСХОДОВ БЮДЖЕТОВ НА 2018 ГОД"]
[]
["Наименование","РЗ","Пр","КЦСР","КВР","Сумма         (тыс. руб)"]
["В С Е Г О",null,null,null,null,{"$f":"F8+F90+F95+F104+F125+F173+F191+F208","v":87514.4}]
["ОБЩЕГОСУДАРСТВЕННЫЕ ВОПРОСЫ","01","00","00.0.00.00000","000",{"$f":"F9+F41+F79+F33+F86","v":22433.600000000002}]
["Функционирование высшего должностного лица субъекта Российской Федерации и муниципального образования","01","02","00.0.00.00000","000",{"$f":"F10","v":1856.3}]
["Непрограммные расходы органов местного самоуправления","01","02","91.0.00.00000","000",{"$f":"F11+F18","v":1856.3}]
["Непрограммные расходы органов местного самоуправления за счет средств местного бюджета","01","02","91.1.00.00000","000",{"$f":"F12","v":1856.3}]
["Осуществление органами местного самоуправления полномочий местного значения поселения","01","02","91.1.00.60000","000",{"$f":"F13","v":1856.3}]
["Обеспечение деятельности в сфере установленных функций","01","02","91.1.00.60001","000",{"$f":"F16+F17+F32","v":1856.3}]
["Расходы на выплаты персоналу в целях обеспечения выполнения функций государственными (муниципальными) органами, казенными учреждениями, органами управления государственными внебюджетными фондами","01","02","91.1.00.60001","100",{"$f":"F15","v":1856.3}]
["Расходы на выплаты персоналу государственных (муниципальных) органов","01","02","91.1.00.60001","120",{"$f":"F16+F17+F32","v":1856.3}]
["Фонд оплаты труда государственных (муниципальных) органов ","01","02","91.1.00.60001","121",1413.1]
["Взносы по обязательному социальному страхованию на выплаты денежного содержания и иные выплаты работникам государственных (муниципальных) органов","01","02","91.1.00.60001","129",343.2]
["Непрограммные расходы органов местного самоуправления за счет средств областного бюджета","01","02","91.1.00.60003","000",{"$f":"F19","v":0}]
["Субсидии на выравнивание обеспеченности муниципальных образований Иркутской области по реализации ими их отдельных расходных обязательств","01","02","91.1.00.60004","000",{"$f":"F20","v":0}]
["Расходы на выплаты персоналу в целях обеспечения выполнения функций государственными (муниципальными) органами, казенными учреждениями, органами управления государственными внебюджетными фондами","01","02","91.1.00.60005","100",{"$f":"F21","v":0}]
["Расходы на выплаты персоналу государственных (муниципальных) органов","01","02","91.1.00.60006","120",{"$f":"F22+F23","v":0}]
["Фонд оплаты труда государственных (муниципальных) органов ","01","02","91.1.00.60007","121",0]
["Взносы по обязательному социальному страхованию на выплаты денежного содержания и иные выплаты работникам государственных (муниципальных) органов","01","02","91.1.00.60008","129",0]
["Функционирование Правительства Российской Федерации, высших исполнительных органов государственной власти субъектов РФ, местных администраций","01","04","91.1.00.60009","000",{"$f":"F41+F25","v":16857.900000000001}]
["Программные расходы","01","04","91.1.00.60010","000",{"$f":"F26","v":0}]
["Муниципальная программа \"Подготовка к празднованию 70-летия победы\"","01","04","91.1.00.60011","000",0]
["Реализация мероприятий муниципальной программы за счет средств местного бюджета","01","04","91.1.00.60012","000",0]
["Мероприятия, связанные, с подготовкой к празднованию 70-летия победы","01","04","91.1.00.60013","000",0]
["Закупка товаров, работ и услуг для обеспечения государственных (муниципальных) нужд","01","04","91.1.00.60014","200",0]
["Иные закупки товаров, работ и услуг для обеспечения государственных (муниципальных) нужд","01","04","91.1.00.60015","240",0]
["Прочая закупка товаров, работ и услуг для обеспечения государственных (муниципальных) нужд","01","04","91.1.00.60016","244"]
["Иные выплаты персоналу государственных (муниципальных) органов, за исключением фонда оплаты труда","01","02","91.1.00.60001","122",100]
["Функционирование законодательных (представительных) органов государственной власти и представительных органов муниципальных образований","01","03","91.1.00.00000","000",765.4]
["Непрограммные расходы органов местного самоуправления за счет средств местного бюджета","01","03","91.1.00.00000","000",765.4]
["Осуществление органами местного самоуправления полномочий местного значения поселения","01","03","91.1.00.60000","000",765.4]
["Обеспечение деятельности в сфере установленных функций","01","03","91.1.00.60001","000",765.4]
["Расходы на выплаты персоналу в целях обеспечения выполнения функций государственными (муниципальными) органами, казенными учреждениями, органами управления государственными внебюджетными фондами","01","03","91.1.00.60001","100",765.4]
["Расходы на выплаты персоналу государственных (муниципальных) органов","01","03","91.1.00.60001","120",{"$f":"F39+F40","v":765.4}]
["Фонд оплаты труда государственных (муниципальных) органов ","01","03","91.1.00.60001","121",587.9]
["Взносы по обязательному социальному страхованию на выплаты денежного содержания и иные выплаты работникам государственных (муниципальных) органов","01","03","91.1.00.60001","129",177.5]
["Непрограммные расходы органов местного самоуправления","01","04","91.0.00.00000","000",{"$f":"F42+F58","v":16857.900000000001}]
["Непрограммные расходы органов местного самоуправления за счет средств местного бюджета","01","04","91.1.00.00000","000",{"$f":"F43","v":16857.2}]
["Осуществление органами местного самоуправления полномочий местного значения поселения","01","04","91.1.00.60000","000",{"$f":"F44","v":16857.2}]
["Обеспечение деятельности в сфере установленных функций","01","04","91.1.00.60001","000",{"$f":"F45+F49+F52","v":16857.2}]
["Расходы на выплаты персоналу в целях обеспечения выполнения функций государственными (муниципальными) органами, казенными учреждениями, органами управления государственными внебюджетными фондами","01","04","91.1.00.60001","100",{"$f":"F46","v":13064.2}]
["Расходы на выплаты персоналу государственных (муниципальных) органов","01","04","91.1.00.60001","120",{"$f":"F47+F48","v":13064.2}]
["Фонд оплаты труда государственных (муниципальных) органов ","01","04","91.1.00.60001","121",10034]
["Взносы по обязательному социальному страхованию на выплаты денежного содержания и иные выплаты работникам государственных (муниципальных) органов","01","04","91.1.00.60001","129",3030.2]
["Закупка товаров, работ и услуг для обеспечения государственных (муниципальных) нужд","01","04","91.1.00.60001","200",{"$f":"F50","v":3511.7}]
["Иные закупки товаров, работ и услуг для обеспечения государственных (муниципальных) нужд","01","04","91.1.00.60001","240",{"$f":"F51","v":3511.7}]
["Прочая закупка товаров, работ и услуг для обеспечения государственных (муниципальных) нужд","01","04","91.1.00.60001","244",{"$f":"3716.7-105-100","v":3511.7}]
["Иные бюджетные ассигнования","01","04","91.1.00.60001","800",{"$f":"F53+F56","v":281.3}]
["Уплата налогов,сборов и иных платежей","01","04","91.1.00.60001","850",{"$f":"F54+F55","v":51}]
["Уплата прочих налогов, сборов","01","04","91.1.00.60001","852",16]
["Уплата иных платежей","01","04","91.1.00.60001","853",35]
["Исполнение судебных актов","01","04","91.1.00.60001","830",{"$f":"F57","v":230.3}]
[" Исполнение судебных актов Российской Федерации и мировых соглашений по возмещению вреда, причиненного в результате незаконных действий (бездействия) органов государственной власти (государственных органов), органов местного самоуправления либо должностных лиц этих органов, а также в результате деятельности казенных учреждений","01","04","91.1.00.60001","831",{"$f":"125.3+105","v":230.3}]
["Непрограммные расходы органов местного самоуправления за счет средств областного бюджета","01","04","91.2.00.00000","000",{"$f":"F67+F59","v":0.7}]
["Субсидии на выравнивание обеспеченности муниципальных образований Иркутской области по реализации ими их отдельных расходных обязательств","01","04","91.2.00.72600","000",{"$f":"F60+F64","v":0}]
["Расходы на выплаты персоналу в целях обеспечения выполнения функций государственными (муниципальными) органами, казенными учреждениями, органами управления государственными внебюджетными фондами","01","04","91.2.00.72600","100",{"$f":"F61","v":0}]
["Расходы на выплаты персоналу государственных (муниципальных) органов","01","04","91.2.00.72600","120",{"$f":"F62+F63","v":0}]
["Фонд оплаты труда государственных (муниципальных) органов ","01","04","91.2.00.72600","121",0]
["Взносы по обязательному социальному страхованию на выплаты денежного содержания и иные выплаты работникам государственных (муниципальных) органов","01","04","91.2.00.72600","129",0]
["Иные закупки товаров, работ и услуг для обеспечения государственных (муниципальных) нужд","01","04","91.2.00.72600","200",{"$f":"F65","v":0}]
["Прочая закупка товаров, работ и услуг для обеспечения государственных (муниципальных) нужд","01","04","91.2.00.72600","240",{"$f":"F66","v":0}]
["Прочая закупка товаров, работ и услуг для обеспечения государственных (муниципальных) нужд","01","04","91.2.00.72600","244",0]
["Субвенции на осуществление областного государственного полномочия по определению перечня должностных лиц органов местного самоуправления, уполномоченных составлять протоколы об административных правонарушениях, предусмотренных отдельными законами Иркутской области об административной ответственности","01","04","91.2.00.73150","000",{"$f":"F70","v":0.7}]
["Закупка товаров, работ и услуг для обеспечения государственных (муниципальных) нужд","01","04","91.2.00.73150","200",{"$f":"F69","v":0.7}]
["Иные закупки товаров, работ и услуг для обеспечения государственных (муниципальных) нужд","01","04","91.2.00.73150","240",{"$f":"F70","v":0.7}]
["Прочая закупка товаров, работ и услуг для обеспечения государственных (муниципальных) нужд","01","04","91.2.00.73150","244",0.7]
["Обеспечение проведения выборов и референдумов","01","07","00.0.00.00000","000",{"$f":"F72","v":0}]
["Непрограммные расходы органов местного самоуправления","01","07","91.0.00.00000","000",0]
["Непрограммные расходы органов местного самоуправления за счет средств местного бюджета","01","07","91.1.00.00000","000",0]
["Осуществление органами местного самоуправления полномочий местного значения поселения","01","07","91.1.00.60000","000",0]
["Проведения выборов и референдумов","01","07","91.1.00.60003","000",0]
["Закупка товаров, работ и услуг для обеспечения государственных (муниципальных) нужд","01","07","91.1.00.60003","200",0]
["Иные закупки товаров, работ и услуг для обеспечения государственных (муниципальных) нужд","01","07","91.1.00.60003","240",0]
["Прочая закупка товаров, работ и услуг для обеспечения государственных (муниципальных) нужд","01","07","91.1.00.60003","244",0]
["Резервные фонды","01","11","00.0.00.00000","000",{"$f":"F80","v":300}]
["Непрограммные расходы органов местного самоуправления","01","11","91.1.00.00000","000",300]
["Непрограммные расходы органов местного самоуправления за счет средств местного бюджета","01","11","91.1.00.00000","000",{"$f":"F82","v":300}]
["Осуществление органами местного самоуправления полномочий местного значения поселения","01","11","91.1.00.60000","000",300]
["Резервный фонд администрации муниципального образования","01","11","91.1.00.60004","000",300]
["Иные бюджетные ассигнования","01","11","91.1.00.60004","800",300]
["Резервные средства","01","11","91.1.00.60004","870",300]
["Другие общегосударственные вопросы","01","13","91.1.00.00000","000",{"$f":"F87","v":2654}]
["Расходы на выплату персоналу в целях обеспечения выполнения функций государственными (муниципальными) органами, казенными учреждениями, органами управления государственными внебюджетными фондами","01","13","91.1.00.60002","100",{"$f":"F88+F89","v":2654}]
["Фонд оплаты труда казенных учреждений и взносы по обязательному социальному страхованию","01","13","91.1.00.60002","111",2088.1]
["Взносы по обязательному социальному страхованию на выплаты по оплате труда работников и иные выплаты работникам учреждений","01","13","91.1.00.60002","119",565.9]
["НАЦИОНАЛЬНАЯ ОБОРОНА","02","00","00.0.00.00000","000",{"$f":"F91+F92+F93","v":327.20000000000005}]
["Мобилизационная и вневойсковая подготовка","02","03","91.3.00.51180","121",228.3]
["Мобилизационная и вневойсковая подготовка","02","03","91.3.00.51180","129",68.900000000000006]
["Закупка товаров, работ и услуг для обеспечения государственных (муниципальных) нужд","02","03","91.3.00.51180","200",30]
["Иные закупки товаров, работ и услуг для обеспечения государственных (муниципальных) нужд","02","03","91.3.00.51180","240",30]
["НАЦИОНАЛЬНАЯ БЕЗОПАСНОСТЬ И ПРАВООХРАНИТЕЛЬНАЯ ДЕЯТЕЛЬНОСТЬ","03","00","00.0.00.00000","000",{"$f":"F96","v":350}]
["Обеспечение пожарной безопасности","03","10","00.0.00.00000","000",350]
["Непрограммные расходы органов местного самоуправления","03","10","91.0.00.00000","000",350]
["Непрограммные расходы органов местного самоуправления за счет средств местного бюджета","03","10","91.1.00.00000","000",350]
["Осуществление органами местного самоуправления полномочий местного значения поселения","03","10","91.1.00.60000","000",350]
["Реализация других функций, связанных с обеспечением национальной безопасности и правоохранительной деятельности","03","10","91.1.00.60007","000",350]
["Закупка товаров, работ и услуг для обеспечения государственных (муниципальных) нужд","03","10","91.1.00.60007","200",350]
["Иные закупки товаров, работ и услуг для обеспечения государственных (муниципальных) нужд","03","10","91.1.00.60007","240",{"$f":"F103","v":350}]
["Прочая закупка товаров, работ и услуг для обеспечения государственных (муниципальных) нужд","03","10","91.1.00.60007","244",350]
["НАЦИОНАЛЬНАЯ ЭКОНОМИКА","04","00","00.0.00.00000","000",{"$f":"F105+F115","v":17296.8}]
["Дорожное хозяйство (дорожные фонды)","04","09","00.0.00.00000","000",{"$f":"F106","v":7593.8}]
["Непрограммные расходы органов местного самоуправления","04","09","91.0.00.00000","000",7593.8]
["Непрограммные расходы органов местного самоуправления за счет средств местного бюджета","04","09","91.1.00.00000","000",7593.8]
["Осуществление органами местного самоуправления полномочий местного значения поселения","04","09","91.1.00.60000","000",{"$f":"F110","v":7593.8}]
["Приобретение материальных и нематериальных активов в сфере установленных функций","04","09","91.1.00.60010","000",{"$f":"F111","v":7593.8}]
["Иные мероприятия и сфере установленных функций","04","09","91.1.00.60011","000",7593.8]
["Закупка товаров, работ и услуг для обеспечения государственных (муниципальных) нужд","04","09","91.1.00.60011","200",7593.8]
["Иные закупки товаров, работ и услуг для обеспечения государственных (муниципальных) нужд","04","09","91.1.00.60011","240",{"$f":"F114+F113","v":7593.8}]
["Закупка товаров, работ, услуг в целях капитального ремонта государственного (муниципального) имущества","04","09","91.1.00.60011","243",1960]
["Прочая закупка товаров, работ и услуг для обеспечения государственных (муниципальных) нужд","04","09","91.1.00.60011","244",5633.8]
["Другие вопросы в области национальной экономике","04","12","00.0.00.00000","000",{"$f":"F116","v":9703}]
["Непрограммные расходы органов местного самоуправления","04","12","91.1.00.00000","000",9703]
["Непрограммные расходы органов местного самоуправления за счет средств местного бюджета","04","12","91.1.00.00000","000",9703]
["Осуществление органами местного самоуправления полномочий местного значения поселения","04","12","91.1.00.60000","000",{"$f":"F120","v":9703}]
["Приобретение материальных и нематериальных активов в сфере установленных функций","04","12","91.1.00.60010","000",9703]
["Иные мероприятия и сфере установленных функций","04","12","91.1.00.60011","000",9703]
["Закупка товаров, работ и услуг для обеспечения государственных (муниципальных) нужд","04","12","91.1.00.60011","200",9703]
["Иные закупки товаров, работ и услуг для обеспечения государственных (муниципальных) нужд","04","12","91.1.00.60011","240",{"$f":"F124+F123","v":9703}]
["Закупка товаров, работ, услуг в целях капитального ремонта государственного (муниципального) имущества","04","12","91.1.00.60011","243",873.7]
["Прочая закупка товаров, работ и услуг для обеспечения государственных (муниципальных) нужд","04","12","91.1.00.60011","244",8829.2999999999993]
["ЖИЛИЩНО-КОММУНАЛЬНОЕ ХОЗЯЙСТВО","05","00","00.0.00.00000","000",{"$f":"F126+F134+F143","v":27555.699999999997}]
["Жилищное хозяйство","05","01","00.0.00.00000","000",{"$f":"F127","v":6040}]
["Непрограммные расходы органов местного самоуправления","05","01","91.0.00.00000","000",6040]
["Непрограммные расходы органов местного самоуправления за счет средств местного бюджета","05","01","91.1.00.00000","000",6040]
["Осуществление органами местного самоуправления полномочий местного значения поселения","05","01","91.1.00.60000","000",6040]
["Текущий ремонт в сфере установленных функций","05","01","91.1.00.60009","000",6040]
["Закупка товаров, работ и услуг для обеспечения государственных (муниципальных) нужд","05","01","91.1.00.60009","200",6040]
["Иные закупки товаров, работ и услуг для обеспечения государственных (муниципальных) нужд","05","01","91.1.00.60009","240",6040]
["Прочая закупка товаров, работ и услуг для обеспечения государственных (муниципальных) нужд","05","01","91.1.00.60009","244",{"$f":"40+6000","v":6040}]
["Коммунальное хозяйство","05","02","00.0.00.00000","000",{"$f":"F135","v":8400.6999999999989}]
["Непрограммные расходы органов местного самоуправления","05","02","91.0.00.00000","000",{"$f":"F137","v":8400.6999999999989}]
["Непрограммные расходы органов местного самоуправления за счет средств местного бюджета","05","02","91.1.00.00000","000",{"$f":"F137","v":8400.6999999999989}]
["Осуществление органами местного самоуправления полномочий местного значения поселения","05","02","91.1.00.60000","000",{"$f":"F138","v":8400.6999999999989}]
["Иные мероприятия и сфере установленных функций","05","02","91.1.00.60011","000",{"$f":"F139","v":8400.6999999999989}]
["Закупка товаров, работ и услуг для обеспечения государственных (муниципальных) нужд","05","02","91.1.00.60011","200",{"$f":"F140","v":8400.6999999999989}]
["Иные закупки товаров, работ и услуг для обеспечения государственных (муниципальных) нужд","05","02","91.1.00.60011","240",{"$f":"F142+F141","v":8400.6999999999989}]
["Закупка товаров, работ и услуг в целях капитального ремонта государственного (муниципального) имущества","05","02","91.1.00.60011","243",6800]
["Прочая закупка товаров, работ и услуг для обеспечения государственных (муниципальных) нужд","05","02","91.1.00.60011","244",{"$f":"7400+1000+0.3+0.4-6800","v":1600.6999999999989}]
["Благоустройство","05","03","00.0.00.00000","000",{"$f":"F144","v":13115}]
["Непрограммные расходы органов местного самоуправления","05","03","91.0.00.00000","000",{"$f":"F145","v":13115}]
["Непрограммные расходы органов местного самоуправления за счет средств местного бюджета","05","03","91.1.00.00000","000",{"$f":"F146","v":13115}]
["Осуществление органами местного самоуправления полномочий местного значения поселения","05","03","91.1.00.60000","000",{"$f":"F147","v":13115}]
["Мероприятия в области жилищно-коммунального хозяйства","05","03","91.1.00.60100","000",{"$f":"F148+F154+F172","v":13115}]
["Уличное освещение","05","03","91.1.00.60101","000",{"$f":"F149+F152","v":2362.3000000000002}]
["Закупка товаров, работ и услуг для обеспечения государственных (муниципальных) нужд","05","03","91.1.00.60101","200",{"$f":"F150","v":2362.3000000000002}]
["Иные закупки товаров, работ и услуг для обеспечения государственных (муниципальных) нужд","05","03","91.1.00.60101","240",{"$f":"F151","v":2362.3000000000002}]
["Прочая закупка товаров, работ и услуг для обеспечения государственных (муниципальных) нужд","05","03","91.1.00.60101","244",{"$f":"1362.3+600+400","v":2362.3000000000002}]
["Иные бюджетные ассигнования","05","03","91.1.00.60101","800",{"$f":"F153","v":0}]
["Уплата иных платежей","05","03","91.1.00.60001","853",0]
["Прочие  мероприятия по благоустройству городских округов и поселений ","05","03","91.1.00.60105","000",{"$f":"F155+F158+F162","v":9972.4}]
["Закупка товаров, работ и услуг для обеспечения государственных (муниципальных) нужд","05","03","91.1.00.60105","200",{"$f":"F156","v":7472.4}]
["Иные закупки товаров, работ и услуг для обеспечения государственных (муниципальных) нужд","05","03","91.1.00.60105","240",{"$f":"F157","v":7472.4}]
["Прочая закупка товаров, работ и услуг для обеспечения государственных (муниципальных) нужд","05","03","91.1.00.60105","244",7472.4]
["Реализация мероприятий перечня проектов народных инициатив за счет средств местного бюджета","05","03","91.1.00.S2370","000",{"$f":"F159","v":250}]
["Закупка товаров, работ и услуг для обеспечения государственных (муниципальных) нужд","05","03","91.1.00.S2370","200",{"$f":"F160","v":250}]
["Иные закупки товаров, работ и услуг для обеспечения государственных (муниципальных) нужд","05","03","91.1.00.S2370","240",{"$f":"F161","v":250}]
["Прочая закупка товаров, работ и услуг для обеспечения государственных (муниципальных) нужд","05","03","91.1.00.S2370","244",250]
["Непрограммные расходы органов местного самоуправления за счет средств областного бюджета","05","03","91.4.00.S2370","000",{"$f":"F163+F167","v":2250}]
["Субсидии на реализацию мероприятий перечня проектов народных инициатив за счет областного бюджета","05","03","91.4.00.S2370","000",{"$f":"F164","v":2250}]
["Закупка товаров, работ и услуг для обеспечения государственных (муниципальных) нужд","05","03","91.4.00.S2370","200",{"$f":"F165","v":2250}]
["Иные закупки товаров, работ и услуг для обеспечения государственных (муниципальных) нужд","05","03","91.4.00.S2370","240",{"$f":"F166","v":2250}]
["Прочая закупка товаров, работ и услуг для обеспечения государственных (муниципальных) нужд","05","03","91.4.00.S2370","244",2250]
["Субсидии на выравнивание обеспеченности муниципальных образований Иркутской области по реализации ими их отдельных расходных обязательств","05","03","91.1.00.60115","000",{"$f":"F168","v":0}]
["Закупка товаров, работ и услуг для обеспечения государственных (муниципальных) нужд","05","03","91.1.00.60116","200",{"$f":"F169","v":0}]
["Иные закупки товаров, работ и услуг для обеспечения государственных (муниципальных) нужд","05","03","91.1.00.60117","240",{"$f":"F170","v":0}]
["Прочая закупка товаров, работ и услуг для обеспечения государственных (муниципальных) нужд","05","03","91.1.00.60118","244"]
["Субсидии юридическим лицам (кроме некоммерческих организаций), индивидуальным предпринимателям, физическим лицам – производителям товаров, работ, услуг","05","03","91.1.00.60100","810",{"$f":"F172","v":780.30000000000018}]
["Субсидии на возмещение недополученных доходов и (или) возмещение фактически понесенных затрат в связи с производством (реализацией) товаров, выполнением работ, оказанием услуг ","05","03","91.1.00.60105","811",{"$f":"3697.4-2917.1","v":780.30000000000018}]
["КУЛЬТУРА, КИНЕМАТОГРАФИЯ","08","00","00.0.00.00000","000",{"$f":"F174","v":19047.2}]
["КУЛЬТУРА","08","01","91.0.00.00000","000",{"$f":"F175+F181+F188","v":19047.2}]
["Непрограммные расходы органов местного самоуправления","08","01","91.1.00.00000","000",{"$f":"F176","v":13224}]
["Осуществление органами местного самоуправления полномочий местного значения поселения","08","01","91.1.00.60002","000",{"$f":"F177","v":13224}]
["Расходы на выплату персоналу в целях обеспечения выполнения функций государственными (муниципальными) органами, казенными учреждениями, органами управления государственными внебюджетными фондами","08","01","91.1.00.60002","100",{"$f":"F178","v":13224}]
["Расходы на выплату персоналу казенных учреждений","08","01","91.1.00.60002","110",{"$f":"F179+F180","v":13224}]
["Фонд оплаты труда казенных учреждений и взносы по обязательному социальному страхованию","08","01","91.1.00.60002","111",{"$f":"10659-2088.1+1396","v":9966.9},null,1396]
["Взносы по обязательному социальному страхованию на выплаты по оплате труда работников и иные выплаты работникам учреждений","08","01","91.1.00.60002","119",{"$f":"3219-565.9+604","v":3257.1},null,604]
["Непрограммные расходы органов местного самоуправления","08","01","91.0.00.00000","000",{"$f":"F182","v":5790.2}]
["Непрограммные расходы органов местного самоуправления за счет средств местного бюджета","08","01","91.1.00.00000","000",5790.2]
["Осуществление органами местного самоуправления полномочий местного значения поселения","08","01","91.1.00.60000","000",5790.2]
["Обеспечение деятельности в сфере установленных функции бюджетных, автономных и казенных учреждений","08","01","91.1.00.60002","000",5790.2]
["Закупка товаров, работ и услуг для обеспечения государственных (муниципальных) нужд","08","01","91.1.00.60002","200",5790.2]
["Иные закупки товаров, работ и услуг для обеспечения государственных (муниципальных) нужд","08","01","91.1.00.60002","240",5790.2]
["Прочая закупка товаров, работ и услуг для обеспечения государственных (муниципальных) нужд","08","01","91.1.00.60002","244",{"$f":"3373.2+600-12+450+400-21+1000","v":5790.2}]
["Иные бюджетные ассигнования","08","01","91.1.00.60002","850",{"$f":"F190+F189","v":33}]
["Уплата прочих налогов, сборов","08","01","91.1.00.60002","852",8]
["Уплата иных платежей","08","01","91.1.00.60002","853",25]
["СОЦИАЛЬНАЯ ПОЛИТИКА","10","00","00.0.00.00000","000",{"$f":"F192","v":244.7}]
["Пенсионное обеспечение","10","01","00.0.00.00000","000",244.7]
["Непрограммные расходы органов местного самоуправления","10","01","91.0.00.00000","000",244.7]
["Непрограммные расходы органов местного самоуправления за счет средств местного бюджета","10","01","91.1.00.00000","000",244.7]
["Осуществление органами местного самоуправления полномочий местного значения поселения","10","01","91.1.00.60000","000",244.7]
["Доплаты к пенсиям муниципальных служащих","10","01","91.1.00.60018","000",244.7]
["Социальное обеспечение и иные выплаты населению","10","01","91.1.00.60018","300",244.7]
["Публичные нормативные социальные выплаты гражданам","10","01","91.1.00.60018","310",244.7]
["Иные пенсии, социальные доплаты к пенсиям","10","01","91.1.00.60018","312",244.7]
["ФИЗИЧЕСКАЯ КУЛЬТУРА И СПОРТ","11","00","00.0.00.00000","000",{"$f":"F201","v":{"$error":"#REF!"}}]
["Другие вопросы в области физической культуры и спорта","11","05","00.0.00.00000","000",{"$error":"#REF!"}]
["Непрограммные расходы органов местного самоуправления","11","05","91.0.00.00000","000",{"$error":"#REF!"}]
["Непрограммные расходы органов местного самоуправления за счет средств местного бюджета","11","05","91.1.00.00000","000",{"$error":"#REF!"}]
["Осуществление органами местного самоуправления полномочий местного значения поселения","11","05","91.1.00.60000","000",{"$error":"#REF!"}]
["Обеспечение деятельности в сфере установленных функции бюджетных, автономных и казенных учреждений","11","05","91.1.00.60002","000",{"$error":"#REF!"}]
["Закупка товаров, работ и услуг для обеспечения государственных (муниципальных) нужд","11","05","91.1.00.60002","200",{"$error":"#REF!"}]
["Иные закупки товаров, работ и услуг для обеспечения государственных (муниципальных) нужд","11","05","91.1.00.60002","240",{"$f":"#REF!","v":{"$error":"#REF!"}}]
["МЕЖБЮДЖЕТНЫЕ ТРАНСФЕРТЫ БЮДЖЕТАМ БЮДЖЕТНОЙ СИСТЕМЫ РФ","14","00","00.0.00.00000","000",{"$f":"F209","v":259.2}]
["Прочие межбюджетные трансферты общего характера ","14","03","00.0.00.00000","000",{"$f":"F210","v":259.2}]
["Непрограммые расходы органов местного самоуправления ","14","03","91.0.00.00000","000",259.2]
["Непрограммые расходы органов местного самоуправления за счет средств местного бюджета","14","03","91.1.00.00000","000",259.2]
["Осуществление органами местного самоуправления полномочий местного значения поселения","14","03","91.1.00.60000","000",259.2]
["Иные межбюджетные трансферты","14","03","91.1.00.60020","000",259.2]
["Выполнение функций органами местного самоуправления","14","03","91.1.00.60020","500",259.2]
["Иные межбюджетные трансферты","14","03","91.1.00.60020","540",259.2]
["МЕЖБЮДЖЕТНЫЕ ТРАНСФЕРТЫ ОБЩЕГО ХАРАКТЕРА БЮДЖЕТАМ СУБЪЕКТОВ РОССИЙСКОЙ ФЕДЕРАЦИИ И МУНИЦИПАЛЬНЫХ ОБРАЗОВАНИЙ ","14","00","00.0.00.00000","000",{"$f":"F217","v":{"$error":"#REF!"}}]
["Прочие межбюджетные трансферты общего характера ","14","03","00.0.00.00000","000",{"$error":"#REF!"}]
["Непрограммные расходы органов местного самоуправления","14","03","91.0.00.00000","000",{"$error":"#REF!"}]
["Непрограммные расходы органов местного самоуправления за счет средств местного бюджета","14","03","91.1.00.00000","000",{"$error":"#REF!"}]
["Осуществление органами местного самоуправления полномочий местного значения поселения","14","03","91.1.00.60000","000",{"$error":"#REF!"}]
["Иные межбюджетные трансферты","14","03","91.1.00.60020","000",{"$error":"#REF!"}]
["Межбюджетные трансферты","14","03","91.1.00.60020","500",{"$f":"#REF!","v":{"$error":"#REF!"}}]